Cogmind - Beta 13 @@@ ROGUE MODE // 2024.04.06 @ 08:20:37 Player: DURANDAL Result: Core destroyed Performance ------------- Evolutions (5) 2500 Regions Visited (9) 1800 Robots Destroyed (91) 455 Value Destroyed (3277) 3277 Prototype IDs (2) 40 Alien Tech Used (0) 0 Bonus (463) 463 TOTAL SCORE: 8535 Bonus ------- High Alert Combat Kills 78 Follower Combat Kills 91 Aligned with FarCom 300 Friendly Fire -6 Cogmind --------- Core Integrity 0/1000 Matter 72/300 Energy 480/480 System Corruption 7% Temperature Critical (617) Movement Treading (240) Ox1 Location -5/Factory Parts ------- > --- POWER (2) -------- Reinforced Deuterium Engine Reinforced Deuterium Engine > --- PROPULSION (4) --- Improved Treads Improved Treads Improved Medium Treads > --- UTILITY (7) ------ High-capacity Storage Unit Improved Target Analyzer Matter Filter Weapon Cycler Advanced Hacking Suite System Shield > --- WEAPON (4) ------- Enhanced Autogun Enhanced Autogun Hypervelocity Coil Gun > --- INVENTORY (20) --- Light Treads Cooled VTOL Module Large Storage Unit High-capacity Storage Unit High-capacity Storage Unit Transport Network Coupler Recoil Nullifier Matter Filter Weapon Cycler Advanced ECM Suite Remote Force Field Remote Force Field Advanced System Shield Skeleton Box Field Recycling Unit (0) Heavy Machine Gun KE Penetrator KE Penetrator Smartbomb Launcher Peak State ------------ > --- POWER ------------ Reinforced Deuterium Engine Reinforced Deuterium Engine > --- PROPULSION ------- Improved Treads Improved Treads Improved Medium Treads Improved Medium Treads > --- UTILITY ---------- High-capacity Storage Unit Improved Target Analyzer Matter Filter Weapon Cycler Phase Shifter Advanced Hacking Suite System Shield > --- WEAPON ----------- Enhanced Autogun Enhanced Autogun Enhanced Autogun Hypervelocity Coil Gun > --- INVENTORY -------- Light Treads Cooled VTOL Module Large Storage Unit High-capacity Storage Unit High-capacity Storage Unit Transport Network Coupler Recoil Nullifier Matter Filter Weapon Cycler Advanced ECM Suite Remote Force Field Remote Force Field Advanced System Shield Skeleton Box Field Recycling Unit Heavy Machine Gun KE Penetrator KE Penetrator Smartbomb Launcher [Rating: 76] Favorites ----------- Power Ion Engine Engine Ion Engine Power Core Light Nuclear Core Propulsion Light Treads Treads Light Treads Wheel Wheel Utility High-capacity Storage Unit Device Weapon Cycler Storage High-capacity Storage Unit Processor Targeting Computer Hackware Hacking Suite Protection Core Shielding Weapon Enhanced Autogun Ballistic Gun Enhanced Autogun Build | -11 -10 -10 -10 -9 -8 -8 -8 -6 -5 ------- Run | Yrd Mat Min Exi Min Mat Sto Rec Fac Fac Slots Evolved 10 | . . . . . 4 . . 4 2 Power 1 | . . . . . . . . . 1 Propulsion 2 | . . . . . 2 . . . . Utility 5 | . . . . . 2 . . 2 1 Weapon 2 | . . . . . . . . 2 . Parts Attached 74 | 6 9 1 . . 8 13 1 10 26 Power 9 | 1 1 . . . 1 1 . 1 4 Engine 6 | 1 1 . . . . . . 1 3 Core 3 | . . . . . 1 1 . . 1 Reactor . | . . . . . . . . . . Propulsion 22 | 2 3 . . . 3 6 . 3 5 Treads 21 | 2 2 . . . 3 6 . 3 5 Leg . | . . . . . . . . . . Wheel 1 | . 1 . . . . . . . . Hover . | . . . . . . . . . . Flight . | . . . . . . . . . . Utility 25 | 1 3 . . . 4 1 1 4 11 Device 9 | . . . . . 1 . 1 2 5 Storage 4 | 1 1 . . . 1 . . . 1 Processor 3 | . . . . . 1 . . 1 1 Hackware 4 | . 1 . . . . . . 1 2 Protection 5 | . 1 . . . 1 1 . . 2 Artifact . | . . . . . . . . . . Weapon 18 | 2 2 1 . . . 5 . 2 6 Energy Gun . | . . . . . . . . . . Energy Cannon . | . . . . . . . . . . Ballistic Gun 18 | 2 2 1 . . . 5 . 2 6 Ballistic Cannon . | . . . . . . . . . . Launcher . | . . . . . . . . . . Special Weapon . | . . . . . . . . . . Impact Weapon . | . . . . . . . . . . Slashing Weapon . | . . . . . . . . . . Piercing Weapon . | . . . . . . . . . . Special Melee Weapon . | . . . . . . . . . . Unidentified Prototypes 2 | . . . . . 1 1 . . . Parts Lost 36 | . 5 . . . 2 4 . 4 21 Power 6 | . 1 . . . . 1 . 1 3 Propulsion 13 | . 2 . . . 1 2 . 3 5 Utility 8 | . . . . . 1 1 . . 6 Weapon 9 | . 2 . . . . . . . 7 Highest Loss Streak 8 | . 3 . . . 2 1 . 2 8 To Critical Strikes . | . . . . . . . . . . Average Slot Usage (%) 91 | . 87 100 100 100 94 96 90 89 82 Engine 6 | . 12 14 14 14 8 . . . 7 Core 3 | . . . . . . 8 9 5 . Treads 26 | . 21 28 28 28 31 33 36 23 18 Device 8 | . . . . . 9 9 9 13 17 Storage 10 | . 14 14 14 14 9 9 9 6 8 Processor 4 | . . . . . 7 9 9 7 1 Hackware 3 | . 2 14 14 14 1 . . 3 2 Protection 3 | . 6 . . . 9 8 . . 1 Ballistic Gun 22 | . 27 28 28 28 18 18 18 26 20 Naked Turns . | . . . . . . . . . . Heaviest Build 129 | 13 18 19 19 19 52 63 63 64 129 Greatest Support 106 | 40 40 40 40 40 80 80 80 80 106 Greatest Overweight (x) 25 | . 4 . . . . 1 . 1 25 Average Overweight (x) . | . . . . . . . . . 1 Largest Inventory Capacity 20 | 8 10 10 10 10 20 20 20 20 20 Average Capacity 15 | 7 8 10 10 10 11 20 20 20 20 Most Carried 20 | 3 6 9 10 10 11 20 20 19 20 Average Carried 12 | . 3 7 9 10 6 18 19 17 12 Final Capacity 20 | 8 10 10 10 10 20 20 20 20 20 Final Carried 20 | 1 6 9 10 10 11 20 20 17 20 Class Distribution -------------------- 59% | Scavenger-Mutant 14% | Scavenger-Skirmisher 13% | Mutant 8% | Scavenger-Gunner 3% | Skirmisher Dominant Class ---------------- Mutant | -10/Materials Scavenger-Mutant | -10/Mines Scavenger-Mutant | -10/Exiles Scavenger-Mutant | -9/Mines Scavenger-Mutant | -8/Materials Scavenger-Mutant | -8/Storage Scavenger-Mutant | -8/Recycling Scavenger-Skirmisher | -6/Factory Scavenger-Skirmisher | -5/Factory Resources | -11 -10 -10 -10 -9 -8 -8 -8 -6 -5 ----------- Run | Yrd Mat Min Exi Min Mat Sto Rec Fac Fac Matter Collected 3121 | 201 304 12 . 51 223 842 18 330 1140 Remotely . | . . . . . . . . . . Salvage Created 4337 | . 396 . . 194 457 1680 51 405 1154 Parts 269 | . 30 . . 10 24 112 3 19 71 Haulers Intercepted 7 | . 1 . . . 2 3 . . 1 Recyclers Shooed 2 | . . . . . 1 . . . 1 Parts Field Recycled . | . . . . . . . . . . Retrieved Matter . | . . . . . . . . . . Parts Self-Destructed . | . . . . . . . . . . Prevented . | . . . . . . . . . . Kills | -11 -10 -10 -10 -9 -8 -8 -8 -6 -5 ------- Run | Yrd Mat Min Exi Min Mat Sto Rec Fac Fac Combat Hostiles Destroyed 70 | . 11 . . 7 5 27 1 7 12 Guns 70 | . 11 . . 7 5 27 1 7 12 Classes Destroyed 15 | . 5 . . 2 2 2 . . 4 Worker 7 | . 1 . . . . 3 . 1 2 Hauler 7 | . 1 . . . 2 3 . . 1 Recycler 3 | . . . . . 1 1 . . 1 Mechanic 1 | . . . . . . . . . 1 Operator 3 | . 1 . . . . 1 . . 1 Watcher 2 | . . . . . . 2 . . . Swarmer 9 | . 6 . . . . 3 . . . Grunt 29 | . 5 . . 4 2 11 . 6 1 Brawler 1 | . . . . . . 1 . . . Duelist 1 | . . . . 1 . . . . . Sentry 19 | . . . . . 3 12 1 1 2 Hunter 1 | . . . . . . . . . 1 Programmer 7 | . . . . . . . . . 7 Behemoth 1 | . . . . . . . . . 1 Assembled 2 | . . . . 2 . . . . . Best Kill Streak 5 | . 3 . . 3 2 5 1 4 2 Combat Bots Only 4 | . 3 . . 3 2 4 1 3 2 Max Kills in Single Turn 2 | . 1 . . 2 1 1 1 1 1 Gunslinging 1 | . . . . 1 . . . . . Exploded . | . . . . . . . . . . Melee . | . . . . . . . . . . Uniques/NPCs Destroyed . | . . . . . . . . . . Combat | -11 -10 -10 -10 -9 -8 -8 -8 -6 -5 -------- Run | Yrd Mat Min Exi Min Mat Sto Rec Fac Fac Hostile Shots Fired 536 | . 110 4 . 16 44 107 . 54 201 Missed 155 | . 32 . . 5 12 36 . 18 52 Damage Taken 6348 | . 814 53 . 142 481 1001 . 483 3374 Core 1395 | . 156 . . 41 47 147 . 4 1000 Absorbed by Shields 274 | . . . . . . . . 131 143 Redirected to Shielding 51 | . 15 . . . 10 26 . . . Ignored by Resistances 58 | . . . . . . 6 . . 52 Core Remaining (%) 71 | 100 . . . 21 . . 64 99 . Volleys Fired 321 | . 66 1 . 15 36 104 1 22 76 Largest 4 | . 2 2 . 2 2 2 2 4 4 Hottest 110 | . 40 40 . 43 43 50 50 100 110 Shots Fired 780 | . 117 2 . 30 72 208 2 88 261 Gun 780 | . 117 2 . 30 72 208 2 88 261 Cannon . | . . . . . . . . . . Launcher . | . . . . . . . . . . Special . | . . . . . . . . . . Kinetic 780 | . 117 2 . 30 72 208 2 88 261 Thermal . | . . . . . . . . . . Explosive . | . . . . . . . . . . Electromagnetic . | . . . . . . . . . . Robot Hit Streak 20 | . 7 3 . 11 10 20 8 20 17 Robot Miss Streak 8 | . 5 . . 1 2 4 . 4 8 Penetration Max 1 | . . . . . . . . . 1 Secondary Targets 8 | . 1 . . 1 . 4 . 1 1 Max Gunslinging Chain 1 | . 1 . . 1 . 1 . 1 1 Shots Hit Robots 550 | . 71 2 . 24 55 159 2 65 172 Core Hits 206 | . 24 . . 10 24 69 1 22 56 Critical Kills 4 | . . . . . . . . . 4 Critical Parts Destroyed 11 | . . . . . 2 . . . 9 Critical Strikes 17 | . . . . . 2 1 . . 14 Destroy 17 | . . . . . 2 1 . . 14 Melee Attacks . | . . . . . . . . . . Impact . | . . . . . . . . . . Slashing . | . . . . . . . . . . Piercing . | . . . . . . . . . . Sneak Attacks . | . . . . . . . . . . Combat Hostiles . | . . . . . . . . . . Follow-up Attacks . | . . . . . . . . . . Damage Inflicted 8051 | . 622 17 . 253 681 2468 40 1147 2823 Guns 7870 | . 596 17 . 253 681 2456 40 1098 2729 Cannons . | . . . . . . . . . . Explosions 49 | . . . . . . . . 49 . Melee . | . . . . . . . . . . Ramming 132 | . 26 . . . . 12 . . 94 Kinetic 7870 | . 596 17 . 253 681 2456 40 1098 2729 Thermal 49 | . . . . . . . . 49 . Explosive . | . . . . . . . . . . Electromagnetic . | . . . . . . . . . . Impact . | . . . . . . . . . . Slashing . | . . . . . . . . . . Piercing . | . . . . . . . . . . Highest Corruption 9 | . . . . . . . . . 9 Average Corruption 5 | . . . . . . . . . 5 Corruption Purged 5 | . . . . . . . . . 5 Corruption Blocked . | . . . . . . . . . . Effects 31 | . . . . . . . . . 31 Message Errors 5 | . . . . . . . . . 5 Matter Fused 7 | . . . . . . . . . 7 Heat Flow Errors 5 | . . . . . . . . . 5 Energy Discharges 4 | . . . . . . . . . 4 Data Loss (minor) 2 | . . . . . . . . . 2 Data Loss (major) 3 | . . . . . . . . . 3 Misfires 1 | . . . . . . . . . 1 Alerts 2 | . . . . . . . . . 2 Weapon Failures 2 | . . . . . . . . . 2 Overload Shots . | . . . . . . . . . . Overflow Damage 87 | . . . . . . . . 87 . Projectiles . | . . . . . . . . . . Explosions 87 | . . . . . . . . 87 . Melee . | . . . . . . . . . . Knockbacks . | . . . . . . . . . . Impact . | . . . . . . . . . . Kinetic . | . . . . . . . . . . Secondary . | . . . . . . . . . . Self-Inflicted Damage 194 | . . . . . . . . 194 . Shots 2 | . . . . . . . . 2 . Rammed 16 | . 4 . . . . 2 . . 10 Targets Rammed 18 | . 4 . . . . 3 . . 11 Kicked . | . . . . . . . . . . Crushed 2 | . . . . . . 1 . . 1 Highest Temperature 887 | . 27 . . 8 16 68 2 313 887 Average Temperature 109 | . 10 . . 2 6 13 1 123 194 Received Heat Transfer 1443 | . 303 18 . 18 225 504 . 120 255 Effects 31 | . . . . . . . . 1 30 Shutdowns 9 | . . . . . . . . . 9 Energy Bleed 2 | . . . . . . . . 1 1 Interference 5 | . . . . . . . . . 5 Matter Decay 3 | . . . . . . . . . 3 Short Circuit 3 | . . . . . . . . . 3 Damage (minor) 4 | . . . . . . . . . 4 Damage (major) 2 | . . . . . . . . . 2 Damage (core) 3 | . . . . . . . . . 3 Siege Activations . | . . . . . . . . . . Robots Corrupted . | . . . . . . . . . . Combat Hostiles . | . . . . . . . . . . Parts Fried . | . . . . . . . . . . Impact Corruptions . | . . . . . . . . . . Robots Melted . | . . . . . . . . . . Combat Hostiles . | . . . . . . . . . . Parts Melted 1 | . . . . . . . . . 1 Heat Transferred 50 | . . . . . . . . 50 . Parts Sabotaged . | . . . . . . . . . . Parts Stolen . | . . . . . . . . . . Parts Stripped . | . . . . . . . . . . Power Chain Reactions . | . . . . . . . . . . Alert | -11 -10 -10 -10 -9 -8 -8 -8 -6 -5 ------- Run | Yrd Mat Min Exi Min Mat Sto Rec Fac Fac Peak Influence 575 | . 187 73 . 145 202 575 243 155 145 Initial 223 | . . 27 . . . 3 223 . 31 Average 97 | . 97 55 . 79 41 225 145 45 31 Maximum Alert Level 2 | . . . . . 1 2 1 . . Low Security (%) 82 | 100 100 100 . 100 95 45 47 100 100 Level 1 12 | . . . . . 4 34 52 . . Level 2 4 | . . . . . . 20 . . . Level 3 . | . . . . . . . . . . Level 4 . | . . . . . . . . . . Level 5 . | . . . . . . . . . . High Security . | . . . . . . . . . . Max Security . | . . . . . . . . . . Squads Dispatched 11 | . 1 . . 1 . 2 . 2 5 Investigation 2 | . . . . . . . . 2 . Extermination 3 | . . . . . . . . . 3 Reinforcement 5 | . 1 . . 1 . 1 . . 2 Assault . | . . . . . . . . . . Garrison 1 | . . . . . . 1 . . . Intercept . | . . . . . . . . . . Searches Triggered . | . . . . . . . . . . Construction Impeded 2 | . . . . 1 . . . . 1 Haulers Reinforced 1 | . . . . . . . . . 1 Active Scanning Responses . | . . . . . . . . . . Cargo Convoy Interrupts . | . . . . . . . . . . Stealth | -11 -10 -10 -10 -9 -8 -8 -8 -6 -5 --------- Run | Yrd Mat Min Exi Min Mat Sto Rec Fac Fac Distress Signals 7 | . 2 . . . 1 4 . . . Communications Jammed . | . . . . . . . . . . Distress Signals . | . . . . . . . . . . Times Spotted 108 | . 22 1 . 8 9 37 . 9 22 Peak Tracking Total 7 | . 7 2 . 4 5 4 . 4 3 Tactical Retreats 7 | . 2 . . . 1 3 . . 1 Traps | -11 -10 -10 -10 -9 -8 -8 -8 -6 -5 ------- Run | Yrd Mat Min Exi Min Mat Sto Rec Fac Fac Traps Triggered . | . . . . . . . . . . Indirectly . | . . . . . . . . . . Trap Hack Attempts . | . . . . . . . . . . Triggered . | . . . . . . . . . . Disarmed . | . . . . . . . . . . Reprogrammed . | . . . . . . . . . . Reused . | . . . . . . . . . . Traps Extracted . | . . . . . . . . . . Installed . | . . . . . . . . . . Triggered . | . . . . . . . . . . Machines | -11 -10 -10 -10 -9 -8 -8 -8 -6 -5 ---------- Run | Yrd Mat Min Exi Min Mat Sto Rec Fac Fac Machines Disabled 10 | . 2 . . 1 . 4 . 2 1 Max in Single Turn 2 | . 1 . . . . 1 . 2 1 Garrison Access 2 | . . . . . . 1 . . 1 Machines Repaired . | . . . . . . . . . . Machines Dismantled . | . . . . . . . . . . Machines Sabotaged . | . . . . . . . . . . Overloaded Fab Kills . | . . . . . . . . . . Hacking | -11 -10 -10 -10 -9 -8 -8 -8 -6 -5 --------- Run | Yrd Mat Min Exi Min Mat Sto Rec Fac Fac Machines Accessed 19 | . 2 . . . 1 5 4 4 3 Terminals 13 | . 2 . . . 1 3 3 3 1 Fabricators 1 | . . . . . . . . . 1 Repair Stations 2 | . . . . . . 1 . 1 . Recycling Units 1 | . . . . . . . 1 . . Scanalyzers . | . . . . . . . . . . Garrison Access 2 | . . . . . . 1 . . 1 Total Hacks 39 | . 4 . . . 2 10 7 12 4 Successful 23 | . 2 . . . 1 6 5 6 3 Failed 16 | . 2 . . . 1 4 2 6 1 Catastrophic 2 | . . . . . . . 1 1 . Database Lockouts . | . . . . . . . . . . Manual 2 | . . . 1 . . . 1 . . Terminals 28 | . 4 . . . 2 4 6 10 2 Fabricators 1 | . . . . . . . . . 1 Repair Stations 6 | . . . . . . 4 . 2 . Recycling Units 1 | . . . . . . . 1 . . Scanalyzers . | . . . . . . . . . . Garrison Access 3 | . . . . . . 2 . . 1 Terminal Hacks 17 | . 2 . . . 1 3 4 6 1 Record 4 | . . . . . . . . 4 . Open DSF 1 | . . . . . . . . 1 . Emergency Access Points 1 | . 1 . . . . . . . . Alert Level 2 | . . . . . . . 2 . . Unreport Threat 3 | . . . . . . . 1 1 1 Locate Traps 3 | . . . . . 1 2 . . . Hauler Manifests 1 | . 1 . . . . . . . . Zone Layout 2 | . . . . . . 1 1 . . Fabricator Hacks 1 | . . . . . . . . . 1 Build 1 | . . . . . . . . . 1 Repair Station Hacks 2 | . . . . . . 2 . . . Scan Component 2 | . . . . . . 2 . . . Recycling Unit Hacks 1 | . . . . . . . 1 . . Report Inventory 1 | . . . . . . . 1 . . Scanalyzer . | . . . . . . . . . . Garrison Access Hacks 2 | . . . . . . 1 . . 1 Seal Access 2 | . . . . . . 1 . . 1 Unauthorized Hacks . | . . . . . . . . . . Terminals . | . . . . . . . . . . Fabricators . | . . . . . . . . . . Repair Stations . | . . . . . . . . . . Recycling Units . | . . . . . . . . . . Scanalyzers . | . . . . . . . . . . Garrison Access . | . . . . . . . . . . Data Cores Recovered 2 | . . . . . . 1 . . 1 Used . | . . . . . . . . . . Hacking Detections 10 | . . . . . . 4 1 4 1 Full Trace Events 3 | . . . . . . 1 . 2 . Feedback Events . | . . . . . . . . . . Feedback Blocked . | . . . . . . . . . . Robot Schematics Acquired . | . . . . . . . . . . Robots Built . | . . . . . . . . . . Authchips . | . . . . . . . . . . Time . | . . . . . . . . . . Total Robot Build Rating . | . . . . . . . . . . Part Schematics Acquired . | . . . . . . . . . . Parts Built 2 | . . . . . . . . . 2 Authchips . | . . . . . . . . . . Time 106 | . . . . . . . . . 106 Total Part Build Rating 12 | . . . . . . . . . 12 Parts Repaired . | . . . . . . . . . . Time . | . . . . . . . . . . Parts Recycled . | . . . . . . . . . . Recycled Matter . | . . . . . . . . . . Retrieved Matter . | . . . . . . . . . . Retrieved Components . | . . . . . . . . . . Parts Scanalyzed . | . . . . . . . . . . Part Schematics Acquired . | . . . . . . . . . . Parts Damaged . | . . . . . . . . . . Bothacking | -11 -10 -10 -10 -9 -8 -8 -8 -6 -5 ------------ Run | Yrd Mat Min Exi Min Mat Sto Rec Fac Fac Used RIF Installer . | . . . . . . . . . . Robots Hacked . | . . . . . . . . . . Non-combat . | . . . . . . . . . . Combat . | . . . . . . . . . . Robot Hacks Applied . | . . . . . . . . . . Relay Couplers Released . | . . . . . . . . . . Fabnet Peak Effective % . | . . . . . . . . . . Robots Rewired . | . . . . . . . . . . Allies Hacked . | . . . . . . . . . . Hacks Repelled . | . . . . . . . . . . Allies | -11 -10 -10 -10 -9 -8 -8 -8 -6 -5 -------- Run | Yrd Mat Min Exi Min Mat Sto Rec Fac Fac Total Allies 3 | . . 3 . . . . . . . Largest Group 3 | . . 3 3 3 . . . . . Highest-Rated Group 40 | . . 40 40 40 . . . . . Highest-Rated Ally 16 | . . 16 16 16 . . . . . Total Orders . | . . . . . . . . . . Ally Attacks 25 | . . 5 . 20 . . . . . Total Damage 232 | . . 70 . 162 . . . . . Kills 3 | . . 2 . 1 . . . . . Allies Corrupted . | . . . . . . . . . . Allies Melted . | . . . . . . . . . . Intel | -11 -10 -10 -10 -9 -8 -8 -8 -6 -5 ------- Run | Yrd Mat Min Exi Min Mat Sto Rec Fac Fac Robot Analysis Total . | . . . . . . . . . . Derelict Logs Recovered 2 | . . 1 . 1 . . . . . Drone Launches . | . . . . . . . . . . Drone Recoveries . | . . . . . . . . . . Exploration | -11 -10 -10 -10 -9 -8 -8 -8 -6 -5 ------------- Run | Yrd Mat Min Exi Min Mat Sto Rec Fac Fac Turns Passed 7401 | 105 979 341 520 469 578 1374 758 489 1788 Spaces Moved 3531 | 58 507 209 324 261 208 607 467 251 639 Core 35 | 6 24 . . . . . . . 5 Treads 3400 | 52 387 209 324 261 208 607 467 251 634 Legs . | . . . . . . . . . . Wheels 96 | . 96 . . . . . . . . Hover . | . . . . . . . . . . Flight . | . . . . . . . . . . Fastest Speed 50 | 50 80 160 160 160 160 160 160 160 160 Average Speed 172 | 148 150 160 160 160 160 161 160 167 234 Slowest Speed 1300 | 160 250 160 160 160 160 240 160 240 1300 Overloaded Moves . | . . . . . . . . . . Propulsion Burnouts . | . . . . . . . . . . Robots Hopped . | . . . . . . . . . . Cave-ins Triggered . | . . . . . . . . . . Exploration Rate (%) 46 | 5 75 46 70 68 16 81 81 8 16 Regions Visited 9 Branch Regions 5 Pre-discovered Areas 2 | . . 1 . 1 . . . . . Known Exits Taken . | . . . . . . . . . . Unknown Exits Taken 9 | 1 1 1 1 1 1 1 1 1 . Scrap Searched 1 | . . . . 1 . . . . . Spaces Dug . | . . . . . . . . . . Terrain Destroyed 46 | . . . . . . . . 46 . Melee . | . . . . . . . . . . Projectile . | . . . . . . . . . . AOE 46 | . . . . . . . . 46 . Terrain Rammed . | . . . . . . . . . . Walls Destroyed . | . . . . . . . . . . Machines Disabled . | . . . . . . . . . . Actions | -11 -10 -10 -10 -9 -8 -8 -8 -6 -5 --------- Run | Yrd Mat Min Exi Min Mat Sto Rec Fac Fac Total 4373 | 77 618 214 326 286 389 858 479 294 832 Wait 310 | 7 22 1 . 9 127 88 3 5 48 Move 3522 | 57 506 208 323 260 207 606 466 250 639 Hop . | . . . . . . . . . . Pick Up 95 | 7 11 3 2 1 9 25 3 6 28 Fast Attach . | . . . . . . . . . . Attach 57 | 6 6 . . . 6 5 1 9 24 Detach 1 | . . . . . . . . 1 . Swap 17 | . 3 1 . . 2 8 . 1 2 Drop 24 | . . . 1 1 2 12 4 . 4 Fire 321 | . 66 1 . 15 36 104 1 22 76 Melee . | . . . . . . . . . . Ram 2 | . . . . . . . . . 2 Kick . | . . . . . . . . . . Crush 16 | . 4 . . . . 3 . . 9 Escape Stasis . | . . . . . . . . . . Rewire 8 | . . . . . . 7 1 . . Trap . | . . . . . . . . . . Miscellaneous . | . . . . . . . . . . Route ------- -11/Scrapyard -10/Materials (discovered 4 exits: [*Mat x2] / [*Min x2]) -10/Mines -10/Exiles -9/Mines -8/Materials (discovered 2 exits: *Sto x2) -8/Storage (discovered 2 exits: [*Fac] / *Rec) -8/Recycling -6/Factory -5/Factory History --------- Turn | Location | Event 8 | -11/Scrapyard | Discovered new exit (range 16) 106 | -11/Scrapyard | Entered Materials 316 | -10/Materials | Build established: Mutant 458 | -10/Materials | Discovered new exit (range 9) 545 | -10/Materials | Core integrity fell below 50% 563 | -10/Materials | Discovered new exit (range 11) 583 | -10/Materials | Lost 3 parts (1p2w) 716 | -10/Materials | Discovered new exit (range 16) 817 | -10/Materials | Discovered new exit (range 10) 933 | -10/Materials | Build established: Scavenger-Mutant 1085 | -10/Materials | Entered Mines 1089 | -10/Mines | Assisted by bots powering up and referring to "LRC-V3" 1418 | -10/Mines | Deemed a non-threat by the Exiles lab entrance 1420 | -10/Mines | Discovered new exit (range 5) 1426 | -10/Mines | Entered Exiles 1426 | -10/Exiles | Accompanied by 3 allies 1465 | -10/Exiles | Met 8R-AWN 1494 | -10/Exiles | Met EX-HEX 1538 | -10/Exiles | Met EX-BIN 1561 | -10/Exiles | Aligned with FarCom system 1562 | -10/Exiles | Given EX-Vault access code 1602 | -10/Exiles | Opened EX-Vault 1610 | -10/Exiles | Found Prototype Device 1643 | -10/Exiles | Warned to stay clear of 0b10 Research branches 1693 | -10/Exiles | Met EX-DEC 1925 | -10/Exiles | Discovered new exit (range 14) 1946 | -10/Exiles | Left Exiles lab with Skeleton Box 1946 | -10/Exiles | Entered Mines 1946 | -9/Mines | Accompanied by 3 allies 2133 | -9/Mines | Lost 3 allies 2212 | -9/Mines | Assembled infested the area 2383 | -9/Mines | A weapon hastily lodged in a ceiling crevice suddenly fell to the ground 2405 | -9/Mines | Discovered new exit (range 5) 2415 | -9/Mines | Entered Materials 2415 | -8/Materials | Evolved 4 slots: Propulsion x2, Utility x2 2418 | -8/Materials | Identified Skeleton Box 2732 | -8/Materials | Discovered new exit (range 5) 2752 | -8/Materials | Discovered new exit (range 15) 2993 | -8/Materials | Entered Storage 3662 | -8/Storage | Remotely autohacked Sealed Heavy Doors 3868 | -8/Storage | Remotely autohacked Sealed Heavy Doors 3925 | -8/Storage | Garrison activated, responded to threat 4083 | -8/Storage | Discovered new exit (range 6) 4103 | -8/Storage | Remotely autohacked Sealed Heavy Doors 4359 | -8/Storage | Remotely autohacked Sealed Blast Doors 4359 | -8/Storage | Discovered new exit (range 6) 4367 | -8/Storage | Entered Recycling 4375 | -8/Recycling | Found Scrap Engine 5065 | -8/Recycling | Discovered new exit (range 16) 5125 | -8/Recycling | Entered Factory 5125 | -6/Factory | Evolved 4 slots: Utility x2, Weapon x2 5435 | -6/Factory | Discovered new exit (range 12) 5614 | -6/Factory | Entered another Factory area 5614 | -5/Factory | Evolved 2 slots: Power x1, Utility x1 5719 | -5/Factory | Spotted B-75 Beast 5850 | -5/Factory | Lost 8 parts (1p3n3u1w) 6090 | -5/Factory | Lost 5 parts (1p1u3w) 6380 | -5/Factory | Destroyed B-75 Beast 6635 | -5/Factory | Noticed a derelict Sapper rigging charges 6757 | -5/Factory | Build established: Scavenger-Skirmisher 6822 | -5/Factory | Fabricated Remote Force Field (x2) 7398 | -5/Factory | Core integrity fell below 50% 7399 | -5/Factory | Core integrity fell below 20% 7403 | -5/Factory | Core destroyed Last Messages --------------- 07390_ Destroyed Hpw. Shock Rifle. 07391_ Overheating: Imp. Target Analyzer damaged (-12). 07391_ Overheating: Enh. Autogun damaged (-24). 07392_ Overheating: Matter decay (-7). 07392_ Enh. Autogun destroyed. 07392_ Destroyed Imp. Remote Datajack. 07392_ HV Slug penetrates Wall. 07393_ Overheating: Enh. Autogun damaged (-6). 07394_ P-70 Sage destroyed. 07396_ Acquired 30 matter. 07397_ Power failure, Rnf. Deuterium Engine shutdown. 07397_ Hyp. Coil Gun broken. 07397_ Overheating: Short circuit. 07398_ Power failure, Rnf. Deuterium Engine shutdown. 07398_ Overheating: Core damaged (-170). 07399_ Overheating: Core damaged (-160). 07403_ Overheating: Core damaged (-190). Map ----- +----------------------------------------------------+ | # #?# #?????????????????????? | | # ### ###???????????????????? | | # # #???????????????????? | | # # ############????????? | | # # * ???????? | | # + [%! ???????? | | # # !! ???????? | | # # ###########?????????? | | # # ] #???????????????????? | | # ## ##???????????????????? | | # ## #????????????????????? | | # ## #????????????????????? | | # ## #????????????????????? | | ############# ![* #????????????????????? | | ???# # %!%!#????????????????????? | | ???#""" ! # !*! #????????????????????? | | ???#"R # = #????????????????????? | | ???#""" # ###########??????????? | | ???#""" # ?????????? | | ???# + ?????????? | | ???# # ?????????? | | ???# # ?????????? | | ???#= ! # ?????????? | | ############## ###########+??????????? | | # ! # #?????????????????????? | | #" # @ #?????????????????????? | | #" """"""""" # #?????????????????????? | | #" #= =#?????????????????????? | | #T """"""""" # #?????????????????????? | | #" # #?????????????????????? | | #" """"""""" + #?????????????????????? | | #" # #?????????????????????? | | # """"""""" + #?????????Y???????????? | | # #####?????????????????????? | | # """"""""" #?????????????????????????? | | # #?????????????????????????? | | ##############?????????????????????????? | | ???????????????????????????????????????? | | ???????????????????????????????????????? | | | | | | | | | | | | | | | | | | | | | | | +----------------------------------------------------+ Best States ------------- Heat Dissipation 40 Energy Generation 31 Energy Capacity 480 Matter Stores 300 Matter Capacity 300 Sight Range 16 Terrain Scan Density 10 Armor Coverage 300 Resistance: KI 20 Core Shielding 20 Weapon Cycling 30 Phase Shifting 5 Evasion (%) 50 Targeting Accuracy 13 Target Analysis 6 Recoil Reduction 4 Matter Filtering 30 Offensive Hacking 14 Defensive Hacking 10 Item Schematics ----------------- None Robot Schematics ------------------ None Fabricated ------------ Remote Force Field | x2 | -5/Factory | Preloaded Alien Tech Used ----------------- None Achievements -------------- I Survived The Infestation Just What I Needed Oops Please Form A Line \\IAMDERELICT Challenges ------------ None Game ------ Seed FluxPowerMapper Manual? 0 Play Time 01:21:17 Cumulative 6.4 hours Start 2024.04.06 @ 04:45:51 End 2024.04.06 @ 08:20:37 Sessions 3 Manual Loads 0 Difficulty Rogue Special Mode None Game No. 9 Rogue 9 Adventurer 0 Explorer 0 Win Type - Total 0 Types 0/0/0/0/0/0/0/0/0 Lore% 14 Gallery% 10 Achievement% 12 Wizard Run 0 Options --------- Layout 1 ASCII 0 Keyboard 0 Movement Numpad Keybinds 0 Fullscreen 1 Font 24/Smallcaps Map View 50x35 Zoom Use 0% Tactical HUD 1 Map Filters NONE Filters NONE Steam 1 RUN: 8c2950e1-5cbc-40d3-9256-51f1a2578fd1